{"text_format":"1","workbook":"xlsx","n_sheets":6,"sheets":["شهر 1","شهر 12","شهر 11","شهر 10","شهر 9","M Ezat"],"not_rendered":{"charts":0,"images":0,"macros":1,"external_links":0,"defined_names":0,"comments":0,"pivot_tables":0},"unopened":[],"bounds":{"document_bytes":16777216,"sheet_cells":100000,"rows_first":2000,"rows_last":500,"rows_between":2000,"halvings":0,"cell_chars":16384,"cell_head_chars":4096},"cells_cut":0,"cells_raw":0,"read":"whole","date_system":"1900"}

{"sheet":"شهر 1","index":0,"n_rows":41,"n_cols":18,"rows_kept":41,"cut":false,"hidden":false,"merged":[[0,15,0,17],[16,15,16,17],[40,4,40,5]]}
["الرقم","الاســـــــــــــم","العنوان","التاريخ","نوع العمليه ","العميل","المبلغ","المدفوع ","الباقي",null,{"$f":"H41","v":3600},null,"الباقي",{"$f":"I41","v":3750},null,"الوارد"]
[null,"السعيد شعبان الشابوري ","قريه السعوديه - تمي الامديد ","2022-01-02T15:02:02","تقرير تعليه ","مصطفى عوض ",650,650,null,null,null,null,null,null,null,"المبلغ","التاريخ ","الاسم "]
[null,"السعيد شعبان الشابوري ","قريه السعوديه - تمي الامديد ","2022-01-02T15:02:31","وثيقه تأمين ","مصطفى عوض ",700,450]
[null,"محمد السيد عوض ","الصلاحات - تمي ","2022-01-02T15:10:39","رسومات استشاري","م ايمان - تمي الامديد ",200]
[null,"رمضان احمد عبد الحليم ","الربع - تمي الامديد ","2022-01-04T11:51:27","تقرير تعليه ","م نجاح - تمي الامديد",650,650,null,null,null,null,null,null,null,500,"2021-09-26","ا كمال - مديونيه قديمه (باقي 1000)"]
[null,"رمضان احمد عبد الحليم ","الربع - تمي الامديد ","2022-01-04T11:52:27","وثيقه تأمين ","م نجاح - تمي الامديد",700,350,null,null,null,null,null,null,null,1000,"2021-09-27","احمد لبده من حساب 5 شهادات صلاحيه"]
[null,"محمد علي عبد البديع ","الرمزيه - السنبلاوين ","2022-01-05T10:18:18","تقرير تعليه ","م هانم ",650,null,null,null,null,null,null,null,null,5000,"2021-10-03","مهندس عبد اللطيف من 7150"]
[null,"فرج السيد ناجي حامد ","ميت أبو الحسين - اجا","2022-01-05T10:18:50","صلاحيه مرافق","م ضياء الجوهري",550,null,null,null,null,null,null,null,null,2500,"2021-10-18","مهندس إبراهيم مصباح من 3150"]
[null,"عبد العزيز جوده ","كفر ميت غراب - السنبلاوين ","2022-01-05T10:22:31","تقرير تعليه ","م محمد عزت صالح",650,null,null,null,null,null,null,null,null,1000,"2021-11-01","من حساب أستاذ كمال ( هدم )"]
[null,"رضا محمد إبراهيم إسماعيل","الحصاينه - السنبلاوين ","2022-01-05T10:23:20","صلاحيه مرافق","محمد زيدان",550,null,null,null,null,null,null,null,null,2500,"2021-12-16","من حساب احمد لبده ( 2 مرافق و 2 هدم)"]
[null,"عبد الحليم ممدوح رمضان محمد","كفر العنانيه - السنبلاوين ","2022-01-05T10:25:15","صلاحيه مرافق","إبراهيم مصباح ",550]
[null,"علي علي عوض الله ","طوخ الأقلام - السنبلاوين ","2022-01-09T10:32:57","اشراف ","م اسلام - فرحات ",1500,1500]
[]
[]
[]
[]
[null,null,null,null,null,null,null,null,null,null,null,null,null,null,null,"ايداعات البنك"]
[null,null,null,null,null,null,null,null,null,null,null,null,null,null,null,8000,"2021-11-07","من فلوس الورق "]
[null,null,null,null,null,null,null,null,null,null,null,null,null,null,null,6000,"2021-11-07","من فلوس م محمد حماد"]
[null,null,null,null,null,null,null,null,null,null,null,null,null,null,null,13200,"2021-11-07","من فلوس الفيزا"]
[null,null,null,null,null,null,null,null,null,null,null,null,null,null,null,2800,"2021-11-07","من فلوس خاصه بيا"]
[null,null,null,null,null,null,null,null,null,null,null,null,null,null,null,{"$f":"SUM(P18:P21)","v":30000},null,"اجمالي الإيداع"]
[]
[]
[]
[]
[]
[]
[]
[]
[]
[]
[]
[]
[]
[]
[]
[]
[]
[]
[null,null,null,null,null,null,{"$f":"SUM(G2:G40)","v":7350},{"$f":"SUM(H2:H40)","v":3600},{"$f":"G41-H41","v":3750}]

{"sheet":"شهر 12","index":1,"n_rows":41,"n_cols":18,"rows_kept":41,"cut":false,"hidden":false,"merged":[[0,15,0,17],[16,15,16,17],[40,4,40,5]]}
["الرقم","الاســـــــــــــم","العنوان","التاريخ","نوع العمليه ","العميل","المبلغ","المدفوع ","الباقي",null,{"$f":"H41","v":17700},null,"الباقي",{"$f":"I41","v":8250},null,"الوارد"]
[null,"ضياء الدين مصبح احمد عامر","الحجايزه - السنبلاوين ","2021-12-01T10:54:44","تقرير تعليه ","م احمد حسن",650,650,{"$f":"G2-H2","v":0},null,null,null,null,null,null,"المبلغ","التاريخ ","الاسم "]
[null,"عرفات علي سليمان","ظفر - تمي الامديد","2021-12-05T15:03:10","تقرير تعليه ","م ايمان - تمي الامديد",650,650,{"$f":"G3-H3","v":0}]
[null,"الجمعيه الخيريه ","كفر الصلاحات - بني عبيد","2021-12-05T15:04:25","تقرير تعليه ","م ايمان - تمي الامديد",650,650,0]
[null,"عبد الله إبراهيم الطنطاوي ","ظفر - تمي الامديد","2021-12-05T15:05:21","تقرير تعليه ","م ايمان - تمي الامديد",650,650,0,null,null,null,null,null,null,500,"2021-09-26","ا كمال - مديونيه قديمه (باقي 1000)"]
[null,"صفاء عبد المالك محمد سالم ","ظفر - تمي الامديد","2021-12-05T15:06:44","تقرير تعليه ","م ايمان - تمي الامديد",650,650,0,null,null,null,null,null,null,1000,"2021-09-27","احمد لبده من حساب 5 شهادات صلاحيه"]
[null,"إبراهيم صبح ","برهمتوش - السنبلاوين ","2021-12-06T10:17:40","اشراف ","مكتب ",1500,1500,0,null,null,null,null,null,null,5000,"2021-10-03","مهندس عبد اللطيف من 7150"]
[null,"سعد محمد العوضي الامام ","قرقيره - السنبلاوين ","2021-12-07T13:17:50","تقرير تعليه ","م اسلام نافع ",650,650,0,null,null,null,null,null,null,2500,"2021-10-18","مهندس إبراهيم مصباح من 3150"]
[null,"سلفيات ","محاميه طرف أ احمد جاد المحامي ","2021-12-09T13:41:49","سلفيات","ا احمد جاد",100,null,100,null,null,null,null,null,null,1000,"2021-11-01","من حساب أستاذ كمال ( هدم )"]
[null,"رضا ياسين بدران ","عزبه عيسى - السنبلاوين","2021-12-09T13:44:03","صلاحيه ","م هاني ",550,550,0,null,null,null,null,null,null,2500,"2021-12-16","من حساب احمد لبده ( 2 مرافق و 2 هدم)"]
[null,"محسن قاسم حسانين","عزبه عيسى - السنبلاوين","2021-12-09T13:44:50","صلاحيه ","م هاني ",550,550,0]
[null,"هاني السيد عبد العزيز ","كفر الروك - السنبلاوين ","2021-12-12T10:36:36","اشراف هدم","م إبراهيم الجدامي",600,600,0]
[null,"علي حجازي رمضان عزام ","كفر عزام - السنبلاوين ","2021-12-12T10:37:47","اشراف هدم ","مكتب ",650,null,650]
[null,"ناديه عاطف ","الزريقي - السنبلاوين ","2021-12-12T10:57:32","اشراف","مكتب ",1550,1550,0]
[null,"إبراهيم محمود حسين ","الشرقين - كفر سعد - السنبلاوين ","2021-12-12T11:01:55","صلاحيه مرافق","م احمد حسن",550,550,0]
[null,"مصبح عبد المقصود إبراهيم شحاته","غزاله - السنبلاوين ","2021-12-12T11:05:53","صلاحيه مرافق","م إبراهيم فؤاد",550,550,0]
[null,"سعاد عبد الحميد درويش إسماعيل","غزاله - السنبلاوين ","2021-12-12T11:07:03","صلاحيه مرافق","م إبراهيم فؤاد",550,550,0,null,null,null,null,null,null,"ايداعات البنك"]
[null,"عبد الجواد الشوادفي العوضي","الحجايزه - السنبلاوين ","2021-12-12T11:31:49","تقرير تعليه ","م احمد حسن",650,650,0,null,null,null,null,null,null,8000,"2021-11-07","من فلوس الورق "]
[null,"وصفي عبد المجيد علي","كفر قنصوه - السنبلاوين ","2021-12-12T11:39:36","صلاحيه مرافق","مكتب ",550,null,550,null,null,null,null,null,null,6000,"2021-11-07","من فلوس م محمد حماد"]
[null,"ربيع احمد عبده مصطفى ","برهمتوش - السنبلاوين ","2021-12-12T11:42:24","صلاحيه مرافق","مكتب ",550,null,550,null,null,null,null,null,null,13200,"2021-11-07","من فلوس الفيزا"]
[null,"محمد نبيل العدروسي عطوان ","شبراهور - السنبلاوين ","2021-12-12T11:42:44","صلاحيه مرافق","مكتب ",550,null,550,null,null,null,null,null,null,2800,"2021-11-07","من فلوس خاصه بيا"]
[null,"نبيل ذكي نصر إبراهيم ","الحصاينه - السنبلاوين ","2021-12-12T11:43:14","سلامه انشائيه - محل","مكتب ",650,null,650,null,null,null,null,null,null,{"$f":"SUM(P18:P21)","v":30000},null,"اجمالي الإيداع"]
[null,"رحاب السعيد عبد النبي","الحجايزه - السنبلاوين ","2021-12-14T11:36:52","صلاحيه مرافق","اميره يوسف",530,530,0]
[null,"جعفر حسن محمد حسن ","الحجايزه - السنبلاوين ","2021-12-14T11:58:51","اشراف هدم ","اميره يوسف",620,620,0]
[null,"سماح الشربيني احمد محمد","كفر عبد الأمين - برهمتوش","2021-12-16T15:38:29","صلاحيه مرافق","احمد لبده ",550,550,0]
[null,"عبد النبي أبو زيد محمد خطاب","قرقيره - السنبلاوين ","2021-12-16T15:39:26","صلاحيه مرافق","احمد لبده ",550,550,0]
[null,"فرج يوسف عبده عرفات ","طنبول الكبرى - السنبلاوين ","2021-12-16T15:40:04","اشراف هدم ","احمد لبده ",850,150,700]
[null,"ناجي إبراهيم السيد يونس","قرقيره - السنبلاوين ","2021-12-16T15:40:34","اشراف هدم ","احمد لبده ",850,800,50]
[null,"إبراهيم صبح ","عزبه داوود - تمي الامديد ","2021-12-16T16:14:58","تقرير تعديل و اضافه ","مكتب ",650,null,650]
[null,"هاني محمد عبد الفتاح ض","بشمس - السنبلاوين ","2021-12-19T13:53:48","اشراف ","مكتب ",1500,1500,0]
[null,"ام محمد محمد علي نعناع ","عزبة الفونس - كفر بدوي - السنبلاوين","2021-12-21T11:13:31","صلاحيه مرافق","مكتب ",550,null,550]
[null,"السواح محمد السواح ","منشاة الاخوه - اجا ","2021-12-26T16:12:24","تقرير تعليه ","ضياء الجوهري ",650,650,0]
[null,"شعبان أبو الفتوح محمد","الزهيري - بني عبيد","2021-12-26T16:14:07","تقرير تعليه ","م ايمان - تمي الامديد",650,650,0]
[null,"طه عبد الروؤف طه","الصلاحات - بني عبيد","2021-12-27T12:34:46","تقرير تعليه ","م ايمان - تمي الامديد",650,100,550]
[null,"فتحي محمد محمد هاشم ","الصلاحات - بني عبيد","2021-12-27T12:35:17","تقرير تعليه ","م ايمان - تمي الامديد",650,null,650]
[null,"نبيل احمد جمعه ","الحجايزه - السنبلاوين ","2021-12-30T11:24:19","تقرير تعليه ","م احمد حسن",650,650,0]
[null,"طارق عبد العزيز السعيد ","السنبلاوين ","2021-12-30T11:25:24","اشراف","مكتب ",1500,null,1500]
[null,"خديجه إبراهيم محمد الاسناوي","السنبلاوين ","2021-12-30T11:26:11","صلاحيه مرافق","مكتب ",550,null,550]
[null,null,null,null,null,null,null,null,0]
[null,null,null,null,null,null,null,null,0]
[null,null,null,null,null,null,{"$f":"SUM(G2:G40)","v":25950},{"$f":"SUM(H2:H40)","v":17700},{"$f":"SUM(I2:I40)","v":8250}]

{"sheet":"شهر 11","index":2,"n_rows":41,"n_cols":18,"rows_kept":41,"cut":false,"hidden":false,"merged":[[0,15,0,17],[40,4,40,5],[16,15,16,17]]}
["الرقم","الاســـــــــــــم","العنوان","التاريخ","نوع العمليه ","العميل","المبلغ","المدفوع ","الباقي",null,{"$f":"H41","v":26490},null,"الباقي",{"$f":"I41","v":1200},null,"الوارد"]
[null,"محمد العوضي سعيد ","برهمتوش - السنبلاوين ","2021-11-01T10:56:23","صلاحيه مرافق","م إبراهيم مصباح ",550,550,{"$f":"G2-H2","v":0},null,null,null,null,null,null,"المبلغ","التاريخ ","الاسم "]
[null,"وليد هريدي محمد عبد اللطيف","كفر العنانيه - السنبلاوين ","2021-11-01T10:57:08","صلاحيه مرافق","م إبراهيم مصباح ",550,550,{"$f":"G3-H3","v":0},null,null,null,null,null,null,2500,"2021-09-20","مهندس حسن من الحساب"]
[null,"محمود السعيد احمد سالم ","أبو داود - تمي الامديد ","2021-11-01T10:57:49","صلاحيه مرافق","م وليد نجم",550,550,0,null,null,null,null,null,null,700,"2021-09-22","إبراهيم مصباح سداد مديونيه - سلفيات"]
[null,"ناهد الباز عبد الفتاح بدوي","ديو الوسطى - السنبلاوين ","2021-11-03T13:55:12","شهاده اشراف","م محمد زيدان",1500,1500,0,null,null,null,null,null,null,500,"2021-09-26","ا كمال - مديونيه قديمه (باقي 1000)"]
[null,"ولاء رضا شعبان ","عزبة النحالين - طهواي - السنبلاوين","2021-11-04T16:24:37","صلاحيه مرافق","ا كمال ",550,550,0,null,null,null,null,null,null,1000,"2021-09-27","احمد لبده من حساب 5 شهادات صلاحيه"]
[null,"رشا محمد السعيد ","طهواي - السنبلاوين ","2021-11-04T16:24:57","صلاحيه مرافق","ا كمال ",550,550,0,null,null,null,null,null,null,5000,"2021-10-03","مهندس عبد اللطيف من 7150"]
[null,"همام سامي سعد","عزبة النحالين - طهواي - السنبلاوين","2021-11-04T16:25:04","صلاحيه مرافق","ا كمال ",550,550,0,null,null,null,null,null,null,2500,"2021-10-18","مهندس إبراهيم مصباح من 3150"]
[null,"ولاء يسري محمد","عزبة النحالين - طهواي - السنبلاوين","2021-11-04T16:27:15","صلاحيه مرافق","ا كمال ",550,550,0,null,null,null,null,null,null,1000,"2021-11-01","من حساب أستاذ كمال ( هدم )"]
[null,"نجلاء فتحي الشافعي","طهواي - السنبلاوين ","2021-11-04T16:27:28","صلاحيه مرافق","ا كمال ",550,550,0]
[null,"بشرى عبد اللطيف حسن ","طهواي - السنبلاوين ","2021-11-04T16:27:42","صلاحيه مرافق","ا كمال ",550,550,0]
[null,"اصلان عزام اصلان","طهواي - السنبلاوين ","2021-11-07T13:15:52","صلاحيه مرافق","ا كمال ",550,550,0]
[null,"اصلان عزام اصلان","طهواي - السنبلاوين ","2021-11-07T13:15:51","صلاحيه مرافق","ا كمال ",550,550,0]
[null,"محمد نبيه محمد","طهواي - السنبلاوين ","2021-11-07T13:15:48","صلاحيه مرافق","ا كمال ",550,550,0]
[null,"حنان محمود العزب","طهواي - السنبلاوين ","2021-11-07T13:15:50","صلاحيه مرافق","ا كمال ",550,550,0]
[null,"جمال صابر علي جبر ","قرقيره - السنبلاوين ","2021-11-14T10:41:09","اشراف ","اسلام نافع",1500,1500,0]
[null,"صلاح السيد عبد الله ","السنبلاوين","2021-11-10","تبرع صلاحيه ","ا كمال ",150,150,0,null,null,null,null,null,null,"ايداعات البنك"]
[null,"وفائي السيد سالم بهنساوي ","السنبلاوين","2021-11-10","تبرع صلاحيه ","ا كمال ",150,150,0,null,null,null,null,null,null,8000,"2021-11-07","من فلوس الورق "]
[null,"حسن محمد عبد الرحمن ","بشمس - السنبلاوين","2021-11-10","اشراف هدم ","م إبراهيم الجدامي",700,700,0,null,null,null,null,null,null,6000,"2021-11-07","من فلوس م محمد حماد"]
[null,"هاني السعيد احمد العوضي ","طهواي - السنبلاوين ","2021-11-14","اشراف هدم ","ا كمال العطار",850,700,150,null,null,null,null,null,null,13200,"2021-11-07","من فلوس الفيزا"]
[null,"عزيزه سالم إسماعيل","ميت غريطه - السنبلاوين ",null,"اشراف","مكتب",1500,1500,0,null,null,null,null,null,null,2800,"2021-11-07","من فلوس خاصه بيا"]
[null,"رضا محمد حامد ","المقاطعه - السنبلاوين ","2021-11-14T12:00:03","اشراف","احمد طلبه ",1500,1500,0,null,null,null,null,null,null,{"$f":"SUM(P18:P21)","v":30000},null,"اجمالي الإيداع"]
[null,"محمد السيد علي سيد احمد ","طوخ الأقلام - السنبلاوين ","2021-11-14T15:02:13","اشراف هدم ","م خالد الباز",850,600,250]
[null,"محمد حامد محمد حسين ","الشعاله - السنبلاوين ","2021-11-16T12:15:26","وثيقه تأمين ","ا كمال العطار",900,900,0]
[null,"احمد جمال الغريب","برهمتوش - السنبلاوين ","2021-11-16T12:16:21","صلاحيه مرافق","إبراهيم مصباح",550,550,0]
[null,"هيثم احمد السيد احمد","برهمتوش - السنبلاوين ","2021-11-16T12:16:55","صلاحيه مرافق","إبراهيم مصباح",550,550,0]
[null,"عادل الششتاوي السعيد","برهمتوش - السنبلاوين ","2021-11-16T12:17:20","صلاحيه مرافق","إبراهيم مصباح",550,550,0]
[null,"السيد حسانين السيد ","كفر الأمير عبد الله - تمي الامديد ","2021-11-21T10:26:05","تقرير تعليه ","م ايمان - تمي الامديد ",650,650,0]
[null,"فاطمه حسين محمد سالم","غزاله - السنبلاوين","2021-11-22T10:43:33","صلاحيه مرافق","احمد طلبه ",550,550,0]
[null,"زينب احمد عبد المجيد ","طماي الزهايرة - السنبلاوين ","2021-11-22T13:43:25","صلاحيه مرافق","مكتب ",550,400,150]
[null,"محمد عبد السلام محمد عبدالله","الاورمان - السنبلاوين","2021-11-23T14:32:51","صلاحيه مرافق","م فكريه ",550,550,0]
[null,"صبحه إبراهيم منصور ","الحجايزه - السنبلاوين","2021-11-23T14:33:46","صلاحيه مرافق","م اميره يوسف",530,530,0]
[null,"السيد احمد احمد محمد","الحجايزه - السنبلاوين","2021-11-24T13:15:19","اشراف ","إبراهيم فؤاد",1500,1500,0]
[null,"السعيد السيد السعيد ","الحجايزه - السنبلاوين","2021-11-24T13:16:42","اشراف","إبراهيم فؤاد",1500,1500,0]
[null,"كامل عبد المعبود عبد الله ","ديو الوسطى - السنبلاوين ","2021-11-29T08:04:39","صلاحيه مرافق","م محمد زيدان",530,530,0]
[null,"سهير محمود يوسف","الحصاينه - السنبلاوين ","2021-11-29T08:05:27","صلاحيه مرافق","م عمر عبد العزيز ",550,550,0]
[null,"عيد إبراهيم شحاته إبراهيم ","أبو خضر - الحجايزه - السنبلاوين ","2021-11-29T08:06:32","صلاحيه مرافق","م احمد حسن",550,550,0]
[null,"محمود طه القزاز ","ديو الوسطى - السنبلاوين ","2021-11-29T08:07:13","صلاحيه مرافق","م محمد زيدان",530,530,0]
[null,"علي محمود محمد علي كل ","ميت غراب - السنبلاوين ","2021-11-29T15:20:55","تقرير تعليه ","م محمد عزت ",650,null,650]
[null,"السيد احمد محمد","الحجايزه - السنبلاوين","2021-11-29T15:21:33","تقرير تعليه ","م إبراهيم فؤاد",650,650,0]
[null,null,null,null,null,null,{"$f":"SUM(G2:G40)","v":27690},{"$f":"SUM(H2:H40)","v":26490},{"$f":"G41-H41","v":1200}]

{"sheet":"شهر 10","index":3,"n_rows":43,"n_cols":18,"rows_kept":43,"cut":false,"hidden":false,"merged":[[0,15,0,17],[42,4,42,5]]}
["الرقم","الاســـــــــــــم","العنوان","التاريخ","نوع العمليه ","العميل","المبلغ","المدفوع ","الباقي",null,{"$f":"G43","v":25420},null,"الباقي",{"$f":"I43","v":400},null,"الوارد"]
[null,"شرين علي علي احمد","الصلاحات - بني عبيد","2021-10-03T11:44:30","وثيقه","م ايمان - تمي ",1100,1100,{"$f":"G2-H2","v":0},null,null,null,null,null,null,"المبلغ","التاريخ ","الاسم "]
[null,"شرين علي علي احمد","الصلاحات - بني عبيد","2021-10-03T11:45:33","تقرير تعليه واضافه","م ايمان - تمي ",950,950,{"$f":"G3-H3","v":0},null,null,null,null,null,null,2500,"2021-09-20","مهندس حسن من الحساب"]
[null,"محمد السيد عوض حسن ","الصلاحات - بني عبيد ","2021-10-03T12:56:32","تقرير تعليه","م ايمان - تمي ",650,650,0,null,null,null,null,null,null,700,"2021-09-22","إبراهيم مصباح سداد مديونيه - سلفيات"]
[null,"علاء رجب محمد علي","كفر بدوي - السنبلاوين","2021-10-04T12:33:40","تقرير تعليه ","م احمد طلبه",650,650,0,null,null,null,null,null,null,500,"2021-09-26","مديونيه قديمه (باقي 1000)"]
[null,"عبد الله صابر السيد ","عزبة مليكة الكبرى - غزاله - السنبلاوين ","2021-10-04T12:34:22","صلاحيه مرافق","م احمد طلبه",550,550,0,null,null,null,null,null,null,1000,"2021-09-27","احمد لبده من حساب 5 شهادات صلاحيه"]
[null,"جواده عطيه موسى محمد","الحجايزة - السنبلاوين ","2021-10-05T09:37:27","صلاحيه مرافق","م احمد حسن - الحجايزه ",550,550,0,null,null,null,null,null,null,5000,"2021-10-03","مهندس عبد اللطيف من 7150"]
[null,"حسام الدين احمد محمد دويدار","طنباره - السنبلاوين","2021-10-11T12:30:32","صلاحيه مرافق","مكتب",550,550,0,null,null,null,null,null,null,2500,"2021-10-18","مهندس إبراهيم مصباح "]
[null,"مسجد الأربعين - ميت غراب","ميت غراب - السنبلاوين ","2021-10-11T13:30:18","تقرير ترميم","م ايه صبحي",450,450,0]
[null,"صلاح يوسف محمد ","ميت غراب - السنبلاوين ","2021-10-05T12:39:18","اشراف هدم","م محمد عزت صالح",850,850,0]
[null,"عواد ( مصنع تشكيل معادن )","السنبلاوين","2021-10-10T11:56:39","تقرير استشاري كهرباء","مكتب",1000,1000,0]
[null,"احمد محمد عيسى عبد الفتاح ","كفر الروك - السنبلاوين ","2021-10-10T12:05:13","دفع صلاحيه تخطيطيه","مكتب",400,400,0]
[null,"مصطفى عبد الجواد الغندور","طنبول الكبرى - السنبلاوين","2021-10-10T12:05:44","دفع صلاحيه تخطيطيه","مكتب",400,400,0]
[null,"وفائي سالم السيد ","طهواي - السنبلاوين ","2021-10-10T12:34:55","صلاحيه مرافق","ا / كمال",550,550,0]
[null,"البربري عبد الحفيظ ذكريا","الزريقي - السنبلاوين ","2021-10-11T11:50:40","دفع صلاحيه تخطيطيه","مكتب",400,400,0]
[null,"شيماء محمد محمد علي","طنبول الكبرى - السنبلاوين","2021-10-11T11:51:37","دفع صلاحيه تخطيطيه","مكتب",400,400,0]
[null,"مدكور احمد مدكور","الزهايرة - السنبلاوين ","2021-10-11T11:52:01","دفع صلاحيه تخطيطيه","احمد مدكور - مكتب",400,null,400]
[null,"إبراهيم فرج محمد","الحجايزة - السنبلاوين ","2021-10-14T10:52:29","صلاحيه مرافق","م احمد حسن - الحجايزه ",550,550,0]
[null,"محمد حمدى مغازى بدران","ميت غريطه - السنبلاوين ","2021-10-17T13:44:40","تقرير تعليه ","م بشير ",650,650,0]
[null,"اسماعيل السيد احمد المتولي","كفر الصلاحات - بني عبيد ","2021-10-17T13:45:09","تقرير تعليه ","م ايمان - تمي ",650,650,0]
[null,"محمد ابو النصر محمد عبد العزيز","كفر الصلاحات - بني عبيد ","2021-10-17T13:45:17","تقرير تعليه ","م ايمان - تمي ",650,650,0]
[null,"مغوري توفيق السيد ","برج النور العرب - السنبلاوين ","2021-10-18T10:42:33","اشراف هدم","ا / احمد جاد",850,850,0]
[null,"محمد عبد الناصر محمد موسى ","كفر بني سالم - السنبلاوين ","2021-10-18T11:08:43","اشراف هدم","م السيد مسعد",850,850,0]
[null,"احمد شوقي عبد العزيز محمد","ميت غريطه - السنبلاوين ","2021-10-20T09:56:58","اشراف هدم","م بشير ",850,850,0]
[null,"مها عطيه عبده طعيمه","الحجايزه - السنبلاوين ","2021-10-20T12:16:04","تقرير تعليه","م احمد طلبه",650,650,0]
[null,"محمد السيد حسانين حسن ","ظفر - تمي الامديد ","2021-10-24T11:37:33","تقرير تعليه ","م ايمان - تمي ",650,650,0]
[null,"إبراهيم السيد سليمان ","عزبة علي ويده - ظفر - تمي الامديد ","2021-10-24T11:37:59","تقرير تعليه ","م ايمان - تمي ",650,650,0]
[null,"عبد الهادي إبراهيم عبد المجيد","غزاله - السنبلاوين","2021-10-25T10:59:53","صلاحيه مرافق","م إبراهيم قؤاد",550,550,0]
[null,"رضا محمد محمد احمد يوسف","غزاله - السنبلاوين","2021-10-25T11:00:19","صلاحيه مرافق","م إبراهيم قؤاد",550,550,0]
[null,"محمد علي محمد موسى ","الحجايزه - السنبلاوين ","2021-10-25T11:00:47","صلاحيه مرافق","م احمد طلبه ",550,550,0]
[null,"حمدي رزق محمود سليمان ","طهواي - السنبلاوين ","2021-10-25T11:07:45","دفع صلاحيه تخطيطيه","ا كمال العطار ",300,300,0]
[null,"هاني السعيد احمد العوضي","الشعاله - السنبلاوين ","2021-10-25T11:13:59","دفع قرار هدم ","ا كمال العطار ",20,20,0]
[null,"هاني السعيد احمد العوضي","الشعاله - السنبلاوين ","2021-10-26T10:31:28","دفع للجنة","ا كمال العطار ",600,600,0]
[null,"عيسوي عبد العظيم ","طرانيس العرب - السنبلاوين ","2021-10-27T10:15:34","وثيقه تامين ","م سمر ",750,750,0]
[null,"مايسه السيد زكريا محمد ","برقين - السنبلاوين ","2021-10-27T10:16:07","وثيقه تامين ","م سمر ",700,700,0]
[null,"عبد الهادي مصطفى حجازي ","نوب طريف - السنبلاوين ","2021-10-27T10:32:53","صلاحيه مرافق","مكتب",550,550,0]
[null,"عبده إسماعيل على الجندي ","ديو الوسطى - السنبلاوين","2021-10-27T11:08:39","صلاحيه مرافق","مكتب",550,550,0]
[null,"عزيزه سالم إسماعيل","الزهايره - السنبلاوين ","2021-10-27T12:29:20","شهاده اشراف ","مكتب ",1500,1500,0]
[null,"خالد عبد الفتاح علي","الحجايزه - السنبلاوين ","2021-10-31T15:16:28","اشراف هدم","م اميرة يوسف",650,650,0]
[null,"جيهان توفيق على طعيمه ","الحجايزه - السنبلاوين ","2021-10-31T15:17:03","اشراف هدم","م اميرة يوسف",650,650,0]
[null,"ناديه حسن مصطفى حسن ","طهواي - السنبلاوين ","2021-10-31T15:36:54","تقرير تعليه ","م إبراهيم مصباح",650,650,0]
[null,null,null,"2021-11-08T11:15:54"]
[null,null,null,null,null,null,{"$f":"SUM(G2:G42)","v":25420},{"$f":"SUM(H2:H42)","v":25020},{"$f":"SUM(I2:I42)","v":400}]

{"sheet":"شهر 9","index":4,"n_rows":43,"n_cols":18,"rows_kept":43,"cut":false,"hidden":false,"merged":[[42,4,42,5],[0,15,0,17],[29,9,33,9]]}
["الرقم","الاســـــــــــــم","العنوان","التاريخ","نوع العمليه ","العميل","المبلغ","المدفوع ","الباقي",null,{"$f":"G43","v":33890},null,"الباقي",{"$f":"I43","v":0},null,"الوارد"]
[null,"اسمهان محمد إبراهيم علي","البشنيني","2021-09-13T10:38:07","صلاحيه مرافق","احمد جاد",550,550,{"$f":"G2-H2","v":0},null,null,null,null,null,null,"المبلغ","التاريخ ","الاسم "]
[null,"السعيد السيد السعيد","الحجايزة ",null,"اشراف هدم ","إبراهيم فؤاد",800,800,{"$f":"G3-H3","v":0},null,null,null,null,null,null,2500,"2021-09-20","مهندس حسن من الحساب"]
[null,"خالد محمد الهادي ","نوب طريف",null,"اشراف هدم ","مكتب ",800,800,0,null,null,null,null,null,null,700,"2021-09-22","إبراهيم مصباح سداد مديونيه - سلفيات"]
[null,"سعديه عوض إسماعيل","سعد الدين",null,"اشراف","عبد اللطيف",1500,1500,0,null,null,null,null,null,null,500,"2021-09-26","مديونيه قديمه (باقي 1000) كمال العطار"]
[null,"سماسم مصطفى محمد","شبراهور",null,"اشراف","عبد اللطيف",1500,1500,0,null,null,null,null,null,null,1000,"2021-09-27","احمد لبده من حساب 5 شهادات صلاحيه"]
[null,"محمود عبد الله عبد السلام","القاسمي","2021-09-13T10:37:19","اشراف","إبراهيم الجدامي",1450,1450,0,null,null,null,null,null,null,null,null,"2021-09-30"]
[null,"خضر محمد خضر محمد","كفر عزام ",null,"تقرير تعليه","مي مكتب",650,650,0]
[null,"إبراهيم محمد خضر ","كفر عزام ",null,"تقرير تعليه","مي مكتب",650,650,0]
[null,"خليل جاد الحق عطا","الصلاحات - بني عبيد ","2021-09-13T10:37:11","تقرير تعليه","ايمان - تمي ",650,650,0]
[null,"رزق رمضان رزق","التمد الحجر - السنبلاوين ","2021-09-20T09:28:28","مرافق","مكتب ",550,550,0]
[null,"صلاح يوسف سالم يوسف","منشاة عزت - السنبلاوين ","2021-09-20T09:29:50","مرافق","سمر ",530,530,0]
[null,"رضا صالح عثمان بسيوني ","منشاة عزت - السنبلاوين ","2021-09-20T09:30:21","مرافق","سمر ",530,530,0]
[null,"رضا محمد علي الجندي ","منشاة عزت - السنبلاوين ","2021-09-20T09:30:34","مرافق","سمر ",530,530,0]
[null,"الشحات محمد عبد العزيز","منشاة الاخوة - اجا ","2021-09-20T09:30:53","مرافق","ضياء",550,550,0]
[null,"ورثة المتولي أبو إبراهيم ","منشاة الاخوة - اجا ","2021-09-20T09:31:16","مرافق","ضياء",550,550,0]
[null,"سعد محمد السعيد ","أبو داود - تمي الامديد ","2021-09-20T16:21:48","تقرير تعليه","مكتب ",650,650,0]
[null,"هاني محمد عبد الفتاح السيد ","بشمس - السنبلاوين ","2021-09-22T11:29:33","تقرير تعليه","مكتب ",650,650,0]
[null,"محمد علي خطاب علي ","طرانيس - السنبلاوين","2021-09-22T11:30:31","تقرير تعليه و تعديل","سمر ",600,600,0]
[null,"نورة العشماوي فرحات ","كفر الشهيد مصطفى حموده - السنبلاوين ","2021-09-22T11:31:35","اشراف هدم ","اسلام نافع",850,850,0]
[null,"فايقه عبد العزيز احمد إبراهيم ","الرمزيه - السنبلاوين ","2021-09-22T12:16:45","اشراف هدم ","مكتب ",850,850,0]
[null,"احمد محمد حسن ","عزبه مناع - برقين - السنبلاوين ","2021-09-22T12:49:30","وثيقه تأمين ","سمر ",800,800,0]
[null,"عمر كمال فضل احمد ","طهواي - السنبلاوين ","2021-09-22T12:50:16","وثيقه تأمين ","كمال طهواي",950,950,0]
[null,"مها عطيه عبده طعيمه ","الحجايزه - السنبلاوين ","2021-09-26T09:02:14","وثيقه تأمين ","احمد طلبه ",750,750,0]
[null,"فوزي السعيد عطوه حسني","طرانيس العرب - السنبلاوين ","2021-09-26T09:02:58","وثيقه تأمين ","سمر ",800,800,0]
[null,"محمد السيد عوض حسن ","الصلاحات - بني عبيد ","2021-09-26T09:07:20","وثيقه تأمين ","ايمان - تمي ",800,800,0]
[null,"سومه يوسف محمد عبد المجيد","طهواي - السنبلاوين ","2021-09-26T13:49:22","مرافق","كمال طهواي",550,550,0]
[null,"سعد محمد السعيد ","أبو داود - تمي الامديد ","2021-09-26T13:56:47","اشراف انشاء","مكتب ",1500,1500,0]
[null,"دعاء توفيق عبد العزيز ","أبو داود - تمي الامديد ","2021-09-26T13:57:36","اشراف انشاء ","م وليد مكتب",1500,1500,0]
[null,"دعاء محمد عرفات جاد","قرقيره - السنبلاوين ","2021-09-27T13:02:32","صلاحيه مرافق","احمد لبده",550,550,0,"مدفوع 1500"]
[null,"عماد احمد محمد احمد ","مبارك - السنبلاوين ","2021-09-27T13:05:04","صلاحيه مرافق","احمد لبده",550,550,0]
[null,"رأيفه عبد اللطيف عبد العزيز ","قرقيره - السنبلاوين ","2021-09-27T13:05:44","صلاحيه مرافق","احمد لبده",550,550,0]
[null,"مجدي محمد عبد الجليل البوشي","قرقيره - السنبلاوين ","2021-09-27T13:06:18","صلاحيه مرافق","احمد لبده",550,550,0]
[null,"محمد صلاح الدين عكاشه","قرقيره - السنبلاوين ","2021-09-27T13:06:43","صلاحيه مرافق","احمد لبده",550,550,0]
[null,"احمد محمد حسن احمد","عزبه مناع - برقين - السنبلاوين ","2021-09-27T13:07:27","تقرير تعليه","سمر ",600,600,0]
[null,"محمد يوسف علي محمد","نوب طريف - السنبلاوين ","2021-09-28T14:53:35","تقرير تعليه ","مكتب ",650,650,0]
[null,"محمد يوسف علي محمد","نوب طريف - السنبلاوين ","2021-09-28T14:54:30","شهاده اشراف","مكتب ",1500,1500,0]
[null,"إبراهيم السيد محمد هلال","شبراهور - السنبلاوين ","2021-09-28T14:54:54","تقرير تعليه و تعديل","مكتب ",900,900,0]
[null,"إبراهيم السيد محمد هلال","شبراهور - السنبلاوين ","2021-09-28T14:55:24","شهاده اشراف","مكتب ",1800,1800,0]
[null,"حماد محمد السيد علي","شبراهور - السنبلاوين ","2021-09-28T14:57:15","تقرير تعليه","مكتب ",1500,1500,0]
[null,"حماد محمد السيد علي","شبراهور - السنبلاوين ","2021-09-28T14:57:30","شهاده اشراف","مكتب ",650,650,0]
[null,"اسلام نافع ","قرقيره - السنبلاوين ","2021-09-30T13:02:11","سلفيات ","اسلام نافع",500,500,0]
[null,null,null,null,null,null,{"$f":"SUM(G2:G42)","v":33890},{"$f":"SUM(H2:H42)","v":33890},{"$f":"SUM(I2:I42)","v":0}]

{"sheet":"M Ezat","index":5,"n_rows":58,"n_cols":18,"rows_kept":58,"cut":false,"hidden":false,"merged":[[0,15,0,17],[57,4,57,5]]}
["الرقم","الاســـــــــــــم","العنوان","التاريخ","نوع العمليه ","الحركه","المبلغ","المدفوع ","الباقي",null,{"$f":"G58","v":12760},null,"الباقي",{"$f":"K1-P28","v":7510},null,"الوارد"]
[null,"أنور سالم عبد الفتاح ","الروضه - السنبلاوين ","2021-09-28T13:21:34","صلاحيه تخطيطيه","اسطوانه",20,null,null,null,null,null,null,null,null,"المبلغ","التاريخ ","الاسم "]
[null,"أنور سالم عبد الفتاح ","الروضه - السنبلاوين ","2021-09-28T13:21:08","صلاحيه تخطيطيه","توريد خزنه",400,null,null,null,null,null,null,null,null,2000,"2021-10-06","وارد بيد يوسف"]
[null,"أنور سالم عبد الفتاح 2","الروضه - السنبلاوين ","2021-09-28T13:21:45","صلاحيه تخطيطيه","اسطوانه",20,null,null,null,null,null,null,null,null,1000,"2021-10-06","من توريد الفيزا"]
[null,"أنور سالم عبد الفتاح  2","الروضه - السنبلاوين ","2021-09-28T13:21:48","صلاحيه تخطيطيه","توريد خزنه",400,null,null,null,null,null,null,null,null,850,"2021-10-17","دفع 3 صلاحيات للمكتب"]
[null,"عبد العزيز جوده ","كفر ميت غراب - السنبلاوين","2021-09-28T13:22:20","صلاحيه تخطيطيه","اسطوانه",20,null,null,null,null,null,null,null,null,400,"2021-10-17","خصم من مدفوعات ميرنا"]
[null,"امينة مصطفى حسن","كفر ميت غراب - السنبلاوين","2021-09-28T13:23:04","صلاحيه تخطيطيه","توريد خزنه",400,null,null,null,null,null,null,null,null,1000,"2021-11-07","بيد مهندس محمد"]
[null,"عصام محمود عقل","ميت غراب - السنبلاوين ","2021-09-28T13:24:39","صلاحيه تخطيطيه","توريد خزنه",400]
[null,"محمود وهاله محمود محمد ","ميت غراب - السنبلاوين ","2021-09-28T13:25:04","صلاحيه تخطيطيه","اسطوانه",20]
[null,"الشحات محمد محمد معتوق","ميت غراب - السنبلاوين ","2022-01-05T10:45:54","صلاحيه تخطيطيه","توريد خزنه",400]
[null,"بهية عبد المقصود السيد","شبراهور - السنبلاوين ","2021-10-03T10:49:52","صلاحيه تخطيطيه","توريد خزنه",400]
[null,"علي محمود محمد","ميت غراب - السنبلاوين ","2021-10-03T10:50:28","صلاحيه تخطيطيه","توريد خزنه",400]
[null,"اكراميات خزمه","ميت غراب - السنبلاوين ","2021-10-04T12:15:12","دفع تصالح","اكراميات",20]
[null,"صلاح يوسف محمد ","ميت غراب - السنبلاوين ","2021-10-05T12:39:42","اشراف هدم","نقابه المهندسين",850]
[null,"مصطفى علي احمد منصور","كفر طنبول الكبرى - السنبلاوين ","2021-10-06T10:59:06","ختم خريطه","ختم",20]
[null,"احمد محمد طارق ","ميت غراب - السنبلاوين ","2021-10-06T10:59:56","ختم خريطه","ختم",20]
[null,"محمود راضي محمود محمد","سعد الدين - السنبلاوين","2021-10-13T12:02:55","صلاحيه تخطيطيه","توريد خزنه وتسجيل",300]
[null,"احمد رمضان طه رمضان ","ميت غراب - السنبلاوين ","2021-10-13T12:03:27","صلاحيه تخطيطيه","توريد خزنه وتسجيل",300]
[null,"حكيم السعيد عبد الحميد","ميت غراب - السنبلاوين ","2021-10-13T12:03:58","صلاحيه تخطيطيه","توريد خزنه وتسجيل",300]
[null,"إبراهيم الامام يوسف مجاهد","ميت غراب - السنبلاوين ","2021-10-13T12:04:44","صلاحيه تخطيطيه","توريد خزنه وتسجيل",300]
[null,"علي محمود محمد","ميت غراب - السنبلاوين ","2021-11-07T13:18:21","نهايه خدمه",null,100]
[null,"نماذج هدم ","مجلس المدينه ","2021-11-08T12:30:00","عدد 4 نماذج ",null,40]
[null,"طباعه صلاحيه هاشم ","مجلس المدينه ","2021-11-14T10:24:26","اكراميات ","اكرامي ",100]
[null,"نموذج 3 ",null,"2021-11-24T15:37:19","مجلس",null,570]
[null,"عثمان فرحات محمد أبو النجا ","ميت غراب - السنبلاوين ","2021-11-29T08:02:41","تصالح ","امر دفع ",150]
[null,"محمد عبد العزيز إبراهيم الدقله","ميت غراب - السنبلاوين ","2021-11-29T08:03:10","تصالح ","امر دفع ",150]
[null,"ملف هدم فاطمه ","ميت غراب - السنبلاوين ","2021-11-29T08:03:39","ترخيص هدم ","تجهيز وتسجيل",500]
[null,"علي محمود محمد علي كل ","ميت غراب - السنبلاوين ","2021-11-29T15:22:22","تقرير تعليه ","نقابه المهندسين",650,null,null,null,null,null,null,null,null,{"$f":"SUM(P3:P27)","v":5250}]
[null,"سالي السعيد عبد الحميد السيد ","ميت غراب - السنبلاوين ","2021-12-06T09:58:01","تسجيل صلاحيه","مركز تكنولوجي",300]
[null,"علاء و عبد الباسط رمضان العدوي","شبراهور - السنبلاوين ","2021-12-06T09:58:53","تسجيل صلاحيه","مركز تكنولوجي",300]
[null,"هالة و محمود ","ميت غراب - السنبلاوين ","2021-12-09T13:30:52","طباعه وتعديل","اكرامي",100]
[null,"إبراهيم الامام يوسف مجاهد","ميت غراب - السنبلاوين ","2021-12-12T12:00:59","نهايه خدمه","اكرامي",150]
[null,"عبد العزيز جوده ","كفر ميت غراب - السنبلاوين","2021-12-12T12:01:53","نهايه خدمه","اكرامي",150]
[null,"علي محمد كل ","ميت غراب - السنبلاوين ","2021-12-13T11:13:02","تسجيل ملف","مركز تكنولوجي",10]
[null,"فاطمه عثمان فرحات ","ميت غراب - السنبلاوين ","2021-12-16T16:12:30","تسجيل ملف","مركز تكنولوجي",300]
[null,"محمد سلامه سليمان ","ميت غراب - السنبلاوين ","2021-12-16T16:13:27","تسجيل ملف","مركز تكنولوجي",300]
[null,"علي حسين المرسي الحزين ","ميت غراب - السنبلاوين ","2021-12-19T15:18:09","تسجيل ملف","مركز تكنولوجي",300]
[null,"حسن عيد حسن فرج الله ","كفر ميت غراب - السنبلاوين","2021-12-19T15:18:32","تسجيل ملف ","مركز تكنولوجي",300]
[null,"مهدي عبد الفتاح محمد","ميت غراب - السنبلاوين ","2021-12-19T15:18:52","تسجيل ملف ","مركز تكنولوجي",300]
[null,"عبد السلام فؤاد عبد السلام ","ميت غراب - السنبلاوين ","2021-12-19T15:19:10","تسجيل ملف ","مركز تكنولوجي",300]
[null,"شاكر عبد الله احمد عبد الله ","الروضه - السنبلاوين ","2021-12-19T15:19:29","تسجيل ملف ","مركز تكنولوجي",300]
[null,"السيد عبد الله محمد ","الروضه - السنبلاوين ","2021-12-19T15:19:49","تسجيل ملف","مركز تكنولوجي",300]
[null,"عراقي حسن عبد الله","ميت غراب - السنبلاوين ","2021-12-28T13:52:36","تسجيل ملف","مركز تكنولوجي",300]
[null,"محمود إبراهيم حسن مجاهد","ميت غراب - السنبلاوين ","2021-12-28T13:53:17","تسجيل ملف","مركز تكنولوجي",300]
[null,"عمل 3 أسطوانات ","مكتب ","2021-12-28T13:53:43","عمل أسطوانات ","مركز تكنولوجي",60]
[null,"هاله ومحمود ","ميت غراب - السنبلاوين ","2021-12-30T11:36:08","تبرع ","مجلس",150]
[null,"عبد العزيز جوده ","كفر ميت غراب - السنبلاوين","2022-01-05T10:19:46","تقرير تعليه ","نقابه المهندسين",650]
[null,"مرفت حمدي السيد علي","كفر سالم - السنبلاوين","2022-01-05T11:03:55","ملف هدم - لجنه","مركز تكنولوجي",40]
[null,"سهام  علي عباس ","ميت غراب - السنبلاوين ","2022-01-05T13:52:54","تسجيل صلاحيه","مركز تكنولوجي",0]
[null,"علي محمود كل ","ميت غراب - السنبلاوين ","2022-01-05T13:54:48","نهايه خدمه","مركز تكنولوجي",200]
[null,"علي محمود كل ","ميت غراب - السنبلاوين ","2022-01-05T13:59:32","اداره ","مجلس",400]
[]
[]
[]
[]
[]
[]
[null,null,null,null,null,null,{"$f":"SUM(G2:G57)","v":12760},{"$f":"SUM(H6:H42)","v":0},{"$f":"SUM(I2:I42)","v":0}]